bitfinex-derivatives/quotes_SOLF0:USTF0_20240906
["timestamp","ask_amount","ask_price","bid_price","bid_amount"]
[1725643481038,3.92,127.62,127.59,3.9206]
[1725643481228,3.92,127.62,127.58,41.73878086]
[1725643481430,4.01564425,127.64,127.59,3.9208]
[1725643481631,39.0058,127.67,127.59,3.9208]
[1725643482240,37.72,127.65,127.56,37.72]
[1725643482539,3.921,127.59,127.56,41.6416]
[1725643483238,3.921,127.59,127.57,3.9215]
[1725643483438,1.3583,127.63,127.56,37.72]
[1725643483934,3.9208,127.6,127.57,3.9214]
[1725643484733,3.921,127.59,127.57,3.9214]
[1725643485035,1.3583,127.63,127.56,37.72]
[1725643485343,1.3583,127.63,127.58,37.72]
[1725643485537,1.2858,127.67,127.6,37.72]
[1725643485737,1.2858,127.67,127.62,37.72]
[1725643485738,5.2044,127.67,127.62,37.72]
[1725643486039,1.2858,127.67,127.56,7.8435]
[1725643486235,3.9192,127.65,127.6,37.72]
[1725643486634,1.2858,127.67,127.61,3.9201]
[1725643486835,3.9193,127.65,127.6,37.72]
[1725643487036,1.2858,127.67,127.6,37.72]
[1725643487441,3.9192,127.65,127.62,3.9197]
[1725643487936,3.9189,127.66,127.63,3.9195]
[1725643488339,3.87304993,127.68,127.61,37.72]
[1725643488548,5.21218997,127.69,127.61,37.72]
[1725643488734,1.3583,127.69,127.63,37.72]
[1725643488942,5.2763,127.69,127.66,3.9187]
[1725643489340,1.3583,127.69,127.66,3.9187]
[1725643489541,1.3583,127.69,127.65,3.919]
[1725643489542,3.9183,127.68,127.65,3.919]
[1725643489841,1.3583,127.69,127.63,37.72]
[1725643490038,1.3583,127.69,127.63,41.70601214]
[1725643490231,5.2764,127.69,127.66,3.9188]
[1725643490442,1.3583,127.69,127.63,41.70601214]
[1725643490840,1.3613,127.72,127.65,37.72]
[1725643491044,3.94367032,127.71,127.66,4.01267181]
[1725643491438,3.94367032,127.71,127.67,3.9183]
[1725643491439,3.9177,127.7,127.67,3.9183]
[1725643491640,1.3613,127.72,127.66,4.01267181]
[1725643491839,3.9174,127.71,127.68,3.918]
[1725643492641,3.9177,127.7,127.67,3.9183]
[1725643492845,3.9177,127.7,127.65,37.72]
[1725643493335,3.9177,127.7,127.68,3.9181]
[1725643493740,5.19938962,127.72,127.65,41.72036179]
[1725643494333,3.9173,127.71,127.68,3.9179]
[1725643494742,37.72,127.76,127.67,37.72]
[1725643494938,3.9166,127.73,127.7,3.9175]
[1725643495445,3.9166,127.73,127.69,37.72]
[1725643495646,3.9166,127.73,127.7,3.9175]
[1725643496042,40.4029,127.78,127.69,37.72]
[1725643496043,3.9161,127.75,127.69,37.72]
[1725643496245,1.3205,127.78,127.73,37.72]
[1725643496842,5.2357,127.78,127.75,3.916]
[1725643497849,1.3205,127.78,127.76,3.9156]
[1725643498154,1.3624,127.81,127.74,37.72]
[1725643498346,4.00866844,127.8,127.74,37.72]
[1725643498649,1.3624,127.81,127.72,37.72]
[1725643498838,1.341,127.8,127.72,37.72]
[1725643499351,3.9152,127.78,127.74,3.9161]
[1725643499543,5.33830689,127.8,127.74,3.9161]
[1725643499744,3.9154,127.77,127.74,3.9161]
[1725643500338,3.9154,127.77,127.75,3.916]
[1725643501344,7.8248,127.87,127.75,37.72]
[1725643501645,3.83333526,127.83,127.75,41.55137668]
[1725643501952,3.9147,127.8,127.77,3.9152]
[1725643502148,4.00608213,127.83,127.78,3.95163357]
[1725643502353,227.0,127.88,127.84,3.913]
[1725643502644,106.62860916,127.98,127.82,37.72]
[1725643502645,3.85409622,127.89,127.82,37.72]
[1725643502837,3.9134,127.84,127.8,1.3619]
[1725643503038,3.894443,127.83,127.78,1.3606]
[1725643503256,1.3058,127.91,127.76,37.72]
[1725643503257,37.72,127.85,127.76,37.72]
[1725643503645,3.97278625,127.84,127.76,37.72]
[1725643504044,1.4142,127.87,127.79,37.72]
[1725643504348,1.4142,127.87,127.81,37.72]
[1725643504545,3.9129,127.86,127.82,3.9137]
[1725643504743,1.3942,127.87,127.82,3.9137]
[1725643505146,1.3942,127.87,127.83,3.9135]
[1725643505147,3.9128,127.86,127.83,3.9135]
[1725643505851,5.3067,127.87,127.81,37.72]
[1725643506045,1.3942,127.87,127.81,37.72]
[1725643506442,3.99463877,127.88,127.81,37.72]
[1725643506645,39.0613,127.9,127.81,37.72]
[1725643506843,3.97075395,127.89,127.81,37.72]
[1725643507047,3.9125,127.87,127.82,37.72]
[1725643507455,3.9127,127.86,127.83,3.9134]
[1725643507657,1.3058,127.91,127.82,37.72]
[1725643508152,3.9125,127.87,127.82,37.72]
[1725643508546,3.9125,127.87,127.83,3.9133]
[1725643509049,3.9125,127.87,127.83,3.9134]
[1725643509248,3.9125,127.87,127.82,37.72]
[1725643509447,1.3013,127.95,127.84,37.72]
[1725643509651,1.3013,127.95,127.86,3.9125]
[1725643509652,1.82077636,127.94,127.86,3.9125]
[1725643509850,3.9119,127.89,127.86,3.9125]
[1725643510450,37.72,127.93,127.84,37.72]
[1725643511046,38.18404018,127.92,127.82,37.72]
[1725643511251,37.72,127.9,127.8,40.3731]
[1725643511454,1.2949,127.89,127.82,3.9137]
[1725643511657,5.11123833,127.89,127.8,40.3731]
[1725643511849,5.11123833,127.89,127.82,37.72]
[1725643512050,2.6374,127.94,127.82,37.72]
[1725643512257,2.6374,127.94,127.8,40.3731]
[1725643512258,39.47905096,127.93,127.84,37.72]
[1725643512452,0.46415096,127.92,127.84,37.72]
[1725643512851,3.9123,127.88,127.84,41.633]
[1725643513057,39.0149,127.93,127.84,41.633]
[1725643513253,0.46400791,127.92,127.84,41.633]
[1725643513553,0.46400791,127.92,127.85,3.9129]
[1725643513952,3.9124,127.87,127.84,41.6331]
[1725643514555,3.82789586,127.91,127.84,37.72]
[1725643514748,1.2949,127.93,127.86,37.72]
[1725643514950,1.2949,127.93,127.84,37.72]
[1725643515155,0.46397031,127.92,127.84,41.69077161]
[1725643515349,38.18397031,127.92,127.84,3.97077161]
[1725643515554,0.46397031,127.91,127.82,37.72]
[1725643515854,41.71230083,127.92,127.83,3.92458164]
[1725643516051,0.46401073,127.91,127.83,3.92458164]
[1725643516252,3.9123,127.87,127.84,3.913]
[1725643516757,41.71230083,127.92,127.82,37.72]
[1725643516954,0.46399466,127.91,127.82,3.81889273]
[1725643517149,1.3837,127.97,127.9,37.72]
[1725643517458,0.46380878,127.96,127.91,37.72]
[1725643517754,3.93515053,127.97,127.9,37.72]
[1725643517950,3.9103,127.94,127.9,41.69703466]
[1725643518154,1.3281,127.99,127.9,41.69703466]
[1725643518450,1.3281,127.99,127.91,3.9109]
[1725643518451,0.46346904,127.98,127.91,3.9109]
[1725643519056,0.46346904,127.98,127.9,41.69703466]
[1725643519057,3.9098,127.96,127.92,3.9108]
[1725643519255,39.0481,127.99,127.86,2.6144]
[1725643519457,37.72,127.95,127.86,6.6180526]
[1725643519654,3.8912,127.91,127.87,3.9121]
[1725643520256,1.333,127.94,127.86,6.6180526]
[1725643520553,1.3124,127.93,127.86,6.6180526]
[1725643520753,3.911,127.92,127.88,3.912]
[1725643521257,37.72,127.97,127.89,3.9115]
[1725643521560,0.46367342,127.96,127.88,37.72]
[1725643521752,3.911,127.92,127.88,41.6318]
[1725643522161,40.3654,127.99,127.89,37.72]
[1725643522354,0.46366003,127.98,127.89,37.72]
[1725643522864,0.46366003,127.98,127.91,3.911]
[1725643523248,0.46366003,127.98,127.89,37.72]
[1725643523249,3.9105,127.94,127.9,3.9113]
[1725643523449,40.3654,127.99,127.9,3.9113]
[1725643523450,37.72,127.97,127.9,3.9113]
[1725643523654,38.18361311,127.96,127.87,37.72]
[1725643523958,0.46361311,127.95,127.87,37.72]
[1725643524860,3.9113,127.91,127.88,3.912]
[1725643526864,3.9109,127.92,127.87,37.72]
[1725643527256,3.9109,127.92,127.88,3.9117]
[1725643527465,40.3654,127.99,127.89,37.72]
[1725643527661,0.46371259,127.98,127.89,37.72]
[1725643528059,3.9104,127.94,127.89,37.72]
[1725643528554,3.9104,127.94,127.9,3.9113]
[1725643528755,3.9105,127.93,127.9,3.9113]
[1725643529351,3.9104,127.94,127.89,37.72]
[1725643529563,40.3654,127.99,127.89,37.72]
[1725643529860,3.9108,127.93,127.9,3.9113]
[1725643530058,37.72,127.98,127.89,37.72]
[1725643530263,37.72,127.98,127.91,3.911]
[1725643530264,0.4635909,127.97,127.91,3.911]
[1725643530558,0.4635909,127.97,127.88,37.72]
[1725643530760,0.4635909,127.96,127.88,37.72]
[1725643531058,0.4635909,127.96,127.89,3.9115]
[1725643531258,0.46367783,127.95,127.89,3.9115]
[1725643531462,0.46367783,127.94,127.89,3.9115]
[1725643531766,37.72,127.97,127.89,3.9115]
[1725643531960,0.4636983,127.96,127.89,3.9115]
[1725643532263,3.9109,127.92,127.89,3.9115]
[1725643532456,3.91734743,127.93,127.88,41.6319]
[1725643532658,3.9113,127.91,127.88,37.72]
[1725643533056,3.9113,127.91,127.88,41.632]
[1725643533661,37.72,127.97,127.88,37.72]
[1725643534168,37.72,127.97,127.89,3.9116]
[1725643536167,2.6454,127.99,127.89,3.9116]
[1725643536371,37.72,127.97,127.89,3.9116]
[1725643536771,3.911,127.92,127.89,3.9116]
[1725643537569,4.00639113,127.93,127.86,1.2813]
[1725643537772,1.4087,127.92,127.86,1.2813]
[1725643537971,3.9113,127.91,127.87,3.9122]
[1725643538171,37.72,127.96,127.87,3.9122]
[1725643538375,0.46376452,127.95,127.87,3.9122]
[1725643538970,3.9114,127.9,127.87,3.9122]
[1725643539573,41.66652416,127.93,127.84,37.72]
[1725643539760,37.72,127.91,127.81,1.2861]
[1725643539966,3.9132,127.85,127.82,3.9137]
[1725643540866,3.9133,127.84,127.81,5.2001]
[1725643541060,3.9133,127.84,127.81,3.914]
[1725643541465,3.9133,127.84,127.82,3.9138]
[1725643543273,3.9131,127.85,127.82,3.9138]
[1725643544177,3.9133,127.84,127.82,3.9138]
[1725643544473,7.8194,127.96,127.82,37.72]
[1725643544675,3.9113,127.91,127.86,37.72]
[1725643544863,41.8089,127.95,127.89,3.9116]
[1725643545473,4.0889,127.95,127.88,3.9119]
[1725643545771,4.0889,127.95,127.86,41.54084993]
[1725643545972,38.18384883,127.94,127.8,1.4127]
[1725643546170,0.46384883,127.93,127.84,37.72]
[1725643546475,4.3960354,127.93,127.84,41.63614002]
[1725643546673,4.3960354,127.93,127.84,37.72]
[1725643546674,41.65218657,127.93,127.84,37.72]
[1725643546969,3.9123,127.87,127.84,41.6331]
[1725643547169,37.72,127.91,127.82,37.72]
[1725643547380,3.9125,127.87,127.82,37.72]
[1725643547577,3.9125,127.87,127.84,3.9132]
[1725643547776,37.72,127.91,127.82,37.72]
[1725643547973,3.9127,127.86,127.82,37.72]
[1725643548171,37.72,127.91,127.82,37.72]
[1725643548677,3.9127,127.86,127.83,3.9133]
[1725643548875,3.93218657,127.93,127.82,37.72]
[1725643549074,37.72,127.9,127.82,37.72]
[1725643549272,3.913,127.85,127.82,37.72]
[1725643549772,3.913,127.85,127.8,1.4127]
[1725643549773,2.7263,127.89,127.8,39.1327]
[1725643549977,39.0739,127.88,127.8,39.1327]
[1725643550374,3.9132,127.84,127.8,39.1327]
[1725643550971,3.9132,127.84,127.82,3.9138]
[1725643551171,3.9132,127.84,127.8,39.1327]
[1725643551572,39.0739,127.88,127.78,37.72]
[1725643552680,3.9137,127.83,127.8,3.9143]
[1725643553179,39.0739,127.88,127.78,37.72]
[1725643553584,39.0739,127.88,127.8,3.9144]
[1725643554075,39.0739,127.88,127.79,3.9147]
[1725643554275,37.72,127.86,127.78,37.72]
[1725643554981,37.72,127.86,127.78,41.6348]
[1725643555280,37.72,127.86,127.78,37.72]
[1725643555473,0.4645971,127.85,127.78,37.72]
[1725643555673,3.9144,127.81,127.78,37.72]
[1725643555875,3.9144,127.81,127.77,119.48669577]
[1725643556078,3.84729399,127.82,127.77,115.57159577]
[1725643556279,3.9144,127.81,127.78,3.915]
[1725643556680,3.96183407,127.82,127.77,115.57159577]
[1725643556880,3.9146,127.8,127.77,119.48679577]
[1725643557078,37.72,127.85,127.77,115.57159577]
[1725643557079,3.91915371,127.82,127.77,115.57159577]
[1725643557390,37.72,127.85,127.77,115.57159577]
[1725643557888,3.9143,127.81,127.78,3.9148]
[1725643558080,3.9143,127.81,127.77,115.57159577]
[1725643558277,37.72,127.85,127.77,115.57159577]
[1725643558480,3.914,127.82,127.78,37.72]
[1725643559081,3.914,127.82,127.8,3.9143]
[1725643560285,37.72,127.87,127.77,115.57159577]
[1725643560489,1.3539,127.88,127.82,37.72]
[1725643560988,1.3539,127.88,127.79,37.72]
[1725643561199,37.72,127.86,127.77,37.72]
[1725643561483,37.72,127.83,127.74,37.72]
[1725643561685,2.711,127.82,127.74,37.72]
[1725643561882,2.711,127.82,127.75,3.9159]
[1725643562081,2.711,127.82,127.74,37.72]
[1725643562284,3.9153,127.78,127.74,37.72]
[1725643562584,2.711,127.82,127.74,41.6361]
[1725643562788,2.711,127.82,127.74,37.72]
[1725643562994,2.711,127.82,127.73,3.9164]
[1725643563291,2.711,127.82,127.72,37.72]
[1725643563793,37.72,127.81,127.72,41.62118844]
[1725643564092,3.9159,127.76,127.72,41.6368]
[1725643564293,37.72,127.81,127.72,37.72]
[1725643564692,3.9159,127.76,127.72,41.6367]
[1725643564894,37.72,127.81,127.72,41.6367]
[1725643565486,37.72,127.81,127.72,37.72]
[1725643565686,37.72,127.81,127.7,41.6373]
[1725643565991,37.72,127.81,127.7,41.55050144]
[1725643566181,37.72,127.81,127.72,3.9167]
[1725643566493,37.72,127.81,127.7,41.55050144]
[1725643566691,37.72,127.81,127.72,3.9167]
[1725643567495,37.72,127.81,127.73,3.9164]
[1725643567795,37.72,127.81,127.7,41.55050144]
[1725643567990,37.72,127.81,127.7,37.72]
[1725643568390,3.9162,127.75,127.7,37.72]
[1725643568590,3.9162,127.75,127.7,41.55755289]
[1725643568892,37.72,127.81,127.72,37.72]
[1725643569290,37.72,127.81,127.74,3.9161]
[1725643569491,3.9153,127.78,127.74,3.9161]
[1725643569798,37.72,127.81,127.74,3.9161]
[1725643569989,37.72,127.81,127.73,3.9165]
[1725643570185,30.1,127.81,127.73,34.0165]
[1725643570387,30.1,127.81,127.73,30.1]
[1725643570600,3.9161,127.75,127.73,30.1]
[1725643571089,2.711,127.82,127.74,30.1]
[1725643571687,3.915,127.79,127.76,3.9155]
[1725643572098,2.711,127.82,127.76,3.9155]
[1725643572295,3.9151,127.78,127.75,3.9159]
[1725643572487,2.711,127.82,127.74,30.1]
[1725643572686,3.9155,127.77,127.74,30.1]
[1725643573997,3.9152,127.78,127.75,3.916]
[1725643575098,2.711,127.82,127.77,30.1]
[1725643575292,1.2824,127.87,127.8,30.1]
[1725643575490,1.4084,127.89,127.83,30.1]
[1725643575687,3.9119,127.89,127.86,3.9126]
[1725643575890,3.88522107,127.9,127.87,30.1]
[1725643576099,1.4084,127.93,127.88,30.1]
[1725643576395,1.4084,127.93,127.89,3.9117]
[1725643576792,5.3191,127.93,127.89,3.9117]
[1725643577395,1.4084,127.93,127.88,34.0119]
[1725643577595,3.911,127.92,127.88,34.0119]
[1725643577995,1.4084,127.93,127.88,3.9119]
[1725643578599,1.4084,127.93,127.87,41.5022]
[1725643579506,3.9112,127.91,127.87,41.5022]
[1725643580099,3.9112,127.91,127.82,1.2923]
[1725643580100,1.4084,127.93,127.85,37.59]
[1725643580499,1.3018,127.92,127.85,37.59]
[1725643580701,3.9122,127.88,127.85,37.59]
[1725643580907,1.3018,127.92,127.85,37.59]
[1725643581199,1.3018,127.92,127.86,3.9124]
[1725643581406,1.3018,127.92,127.85,37.59]
[1725643581800,3.9119,127.89,127.85,37.59]
[1725643582400,3.9119,127.89,127.82,5.11800845]
[1725643582401,1.3018,127.92,127.87,37.59]
[1725643583106,3.9113,127.91,127.88,3.9118]
[1725643583404,3.9113,127.91,127.87,37.59]
[1725643583602,3.9113,127.91,127.87,41.5021]
[1725643583906,3.9114,127.9,127.87,41.5021]
[1725643584407,3.9114,127.91,127.88,3.912]
[1725643584608,1.2824,127.97,127.9,37.59]
[1725643584908,2.7039,127.99,127.92,3.9108]
[1725643585303,0.92703029,127.98,127.94,37.59]
[1725643585507,0.46351546,127.98,127.94,37.59]
[1725643586007,0.4633029,127.97,127.94,41.5]
[1725643586805,0.4633029,127.97,127.94,37.59]
[1725643587307,0.4633029,127.97,127.94,41.5]
[1725643588004,0.4633029,127.97,127.92,37.59]
[1725643588610,4.3728029,127.97,127.93,3.9103]
[1725643588915,3.9095,127.97,127.93,3.9103]
[1725643589300,3.9095,127.97,127.92,37.59]
[1725643590108,3.9096,127.96,127.93,3.9103]
[1725643591105,4.3261804,127.98,127.9,37.59]
[1725643591308,0.46334494,127.97,127.9,37.59]
[1725643591509,1.86484494,127.97,127.9,37.59]
[1725643591708,0.46334494,127.96,127.9,41.5012]
[1725643592315,3.9107,127.93,127.9,41.5012]
[1725643594518,2.7176,127.97,127.88,40.2962]
[1725643594818,38.05366073,127.96,127.8,3.92134428]
[1725643595119,10.5362,127.97,127.87,3.9123]
[1725643595120,38.05366073,127.95,127.87,3.9123]
[1725643595413,0.46366073,127.94,127.87,3.9123]
[1725643595916,0.46366073,127.94,127.88,3.9119]
[1725643596111,3.9113,127.91,127.88,3.9119]
[1725643596509,3.9113,127.91,127.87,3.9122]
[1725643596709,3.9114,127.9,127.87,3.9122]
[1725643598319,6.67476645,127.97,127.89,37.59]
[1725643598518,0.46347934,127.96,127.91,37.59]
[1725643598711,3.9097,127.96,127.93,3.9102]
[1725643599911,3.9097,127.96,127.93,41.5002]
[1725643600515,3.91,127.95,127.92,3.9107]
[1725643600719,5.35866645,127.97,127.91,37.59]
[1725643601018,5.35866645,127.97,127.9,37.59]
[1725643601226,0.46350844,127.96,127.9,37.59]
[1725643601519,3.9104,127.94,127.9,41.5012]
[1725643601726,6.71626645,127.97,127.9,37.59]
[1725643601922,6.71626645,127.97,127.92,37.59]
[1725643601923,0.46351585,127.96,127.92,37.59]
[1725643602220,6.71626645,127.97,127.92,37.59]
[1725643602427,3.9098,127.96,127.92,41.5005]
[1725643602722,6.71626645,127.97,127.92,37.59]
[1725643602930,3.9104,127.94,127.92,37.59]
[1725643603225,44.30626645,127.97,127.89,37.59]
[1725643603430,0.46369533,127.96,127.9,3.9111]
[1725643603620,0.46369533,127.96,127.89,37.59]
[1725643604332,0.46369935,127.95,127.87,38.8894]
[1725643604523,0.46369935,127.94,127.87,38.8894]
[1725643604728,0.46369935,127.93,127.87,38.8894]
[1725643605027,44.30626645,127.97,127.89,3.9115]
[1725643605327,44.30626645,127.97,127.83,1.3977]
[1725643605328,0.46377281,127.96,127.83,1.3977]
[1725643605528,37.59,127.94,127.86,3.9126]
[1725643605730,0.46377281,127.93,127.85,37.59]
[1725643606024,0.46377281,127.93,127.87,37.59]
[1725643606218,6.71626645,127.97,127.87,37.59]
[1725643606427,0.46375986,127.96,127.87,37.59]
[1725643606625,3.911,127.92,127.88,3.912]
[1725643606823,44.30626645,127.97,127.88,3.912]
[1725643607028,0.46377148,127.96,127.88,3.912]
[1725643607426,0.46377148,127.96,127.87,41.5022]
[1725643607724,0.46377148,127.96,127.87,37.59]
[1725643607921,0.46377148,127.96,127.88,3.912]
[1725643608130,44.30626645,127.97,127.88,3.912]
[1725643608329,3.911,127.92,127.88,3.912]
[1725643608828,44.30626645,127.97,127.88,3.912]
[1725643609037,0.4637296,127.96,127.87,37.59]
[1725643609838,3.9113,127.91,127.87,37.59]
[1725643610129,44.30626645,127.97,127.87,37.59]
[1725643610344,3.9114,127.91,127.87,33.9923]
[1725643610529,30.08,127.95,127.87,33.9923]
[1725643610734,0.46374275,127.94,127.87,33.9923]
[1725643611041,30.08,127.93,127.85,30.08]
[1725643611640,3.9116,127.9,127.85,30.08]
[1725643612335,3.97297058,127.9,127.84,1.3833]
[1725643612636,3.94792428,127.9,127.85,30.08]
[1725643612837,30.08,127.93,127.85,30.08]
[1725643613039,0.4639035,127.92,127.85,30.08]
[1725643613334,0.4639035,127.92,127.85,33.9928]
[1725643614331,0.4639035,127.92,127.85,30.08]
[1725643614536,31.92486546,127.91,127.85,30.08]
[1725643614737,31.4608,127.91,127.85,30.08]
[1725643614936,3.9125,127.87,127.85,30.08]
[1725643615646,3.91152925,127.88,127.84,1.3833]
[1725643615830,30.08,127.9,127.82,33.9938]
[1725643616141,35.29344569,127.9,127.82,30.08]
[1725643616443,3.9131,127.85,127.82,33.9939]
[1725643616630,5.21344569,127.9,127.82,30.08]
[1725643616831,3.9134,127.84,127.82,30.08]
[1725643617233,30.08,127.89,127.82,30.08]
[1725643617540,30.08,127.88,127.82,30.08]
[1725643617942,3.9133,127.84,127.82,30.08]
[1725643618541,3.9135,127.83,127.82,30.08]
[1725643619044,3.9142,127.81,127.79,30.08]
[1725643619239,30.08,127.86,127.79,30.08]
[1725643619240,3.9465023,127.83,127.79,30.08]
[1725643619444,7.8239,127.89,127.77,32.8416]
[1725643619445,30.08,127.84,127.77,32.8416]
[1725643619637,30.08,127.84,127.77,31.4866]
[1725643619942,30.08,127.82,127.75,127.29003594]
[1725643620135,33.99518707,127.82,127.75,97.21003594]
[1725643620341,30.08,127.81,127.7,1.2903]
[1725643620647,3.9167,127.73,127.71,30.08]
[1725643620844,3.9167,127.73,127.7,1.2903]
[1725643621045,7.9014635,127.73,127.7,1.2903]
[1725643621346,3.9167,127.73,127.7,1.2903]
[1725643621542,3.96752701,127.75,127.67,33.97427192]
[1725643621742,1.2904,127.76,127.67,35.26457192]
[1725643621940,3.9172,127.71,127.67,42.8587]
[1725643622444,38.9404,127.76,127.67,1.2903]
[1725643622445,37.65,127.74,127.67,1.2903]
[1725643622641,37.65,127.74,127.63,114.18402466]
[1725643622844,1.2904,127.76,127.67,37.65]
[1725643623042,0.46605381,127.73,127.69,37.65]
[1725643623244,0.46605381,127.73,127.7,37.65]
[1725643623836,0.46605381,127.73,127.7,41.5674]
[1725643624241,1.2904,127.76,127.71,3.9171]
[1725643625049,5.2062,127.76,127.71,3.9171]
[1725643625242,1.2904,127.76,127.71,3.9171]
[1725643625442,3.9162,127.75,127.71,3.9171]
[1725643626549,1.2904,127.76,127.69,39.0665]
[1725643627547,38.9404,127.76,127.69,39.0665]
[1725643627842,3.9169,127.73,127.69,39.0665]
[1725643628042,38.9404,127.76,127.69,39.0665]
[1725643629046,3.9168,127.73,127.69,42.9842]
[1725643629346,38.9404,127.76,127.69,1.4165]
[1725643630748,1.2904,127.76,127.67,37.65]
[1725643630949,3.9172,127.72,127.68,3.918]
[1725643631254,37.65,127.75,127.67,37.65]
[1725643631550,37.65,127.75,127.67,41.5683]
[1725643632054,0.4658277,127.74,127.66,3.9185]
[1725643632353,37.65,127.73,127.66,3.9185]
[1725643632749,37.65,127.73,127.64,2.6869]
[1725643632750,37.65,127.73,127.65,3.919]
[1725643632946,37.65,127.73,127.64,2.6869]
[1725643633148,37.65,127.71,127.64,5.3277]
[1725643633457,1.3777,127.7,127.64,5.3277]
[1725643633646,1.3777,127.7,127.63,37.65]
[1725643633647,3.9186,127.67,127.63,3.9195]
[1725643633953,3.88033354,127.67,127.61,38.9913]
[1725643634143,2.7871,127.7,127.61,38.9913]
[1725643634349,2.7871,127.7,127.63,3.9195]
[1725643634654,6.75759181,127.7,127.63,3.9195]
[1725643634853,3.9187,127.67,127.63,3.9195]
[1725643635156,6.75759181,127.7,127.63,3.9195]
[1725643636050,3.9187,127.67,127.63,3.9195]
[1725643636254,3.9187,127.67,127.64,3.9193]
[1725643636452,6.75759181,127.7,127.61,38.9913]
[1725643636453,37.65,127.69,127.61,38.9913]
[1725643636756,37.65,127.69,127.63,3.9194]
[1725643636957,3.9183,127.68,127.61,38.9913]
[1725643637157,6.75759181,127.7,127.61,38.9913]
[1725643637352,6.75759181,127.7,127.64,3.9191]
[1725643637657,3.9184,127.68,127.64,3.9191]
[1725643637959,6.75759181,127.7,127.64,3.9191]
[1725643638252,3.9187,127.67,127.64,3.9191]
[1725643638646,6.75759181,127.7,127.62,37.65]
[1725643638855,5.34819181,127.7,127.64,37.65]
[1725643639056,1.3046,127.72,127.66,37.65]
[1725643639349,1.3465,127.74,127.66,37.65]
[1725643639557,1.3465,127.74,127.67,3.9183]
[1725643639758,3.9177,127.7,127.67,3.9183]
[1725643640150,5.2629,127.74,127.71,3.9169]
[1725643640464,1.3465,127.74,127.68,37.65]
[1725643640759,1.3465,127.74,127.66,37.65]
[1725643640952,1.3465,127.74,127.61,1.3413]
[1725643640953,38.9965,127.74,127.64,37.65]
[1725643641154,38.9965,127.74,127.66,3.9185]
[1725643641355,3.9178,127.7,127.66,3.9185]
[1725643641555,7.80184054,127.7,127.66,3.9185]
[1725643642557,3.9179,127.69,127.66,3.9185]
[1725643643261,3.88404054,127.7,127.66,3.9185]
[1725643643461,30.08,127.69,127.61,1.3413]
[1725643643968,4.01524698,127.7,127.61,1.3413]
[1725643643969,30.08,127.67,127.61,1.3413]
[1725643644362,3.919,127.66,127.62,3.92]
[1725643644764,37.63,127.69,127.61,1.3413]
[1725643644765,1.3059,127.68,127.61,1.3413]
[1725643645269,3.9188,127.66,127.61,5.2615]
[1725643645663,1.3059,127.68,127.61,1.3413]
[1725643646168,1.3059,127.68,127.63,3.9196]
[1725643646365,3.9188,127.66,127.61,1.3413]
[1725643646564,38.9359,127.68,127.61,1.3413]
[1725643647265,1.3059,127.68,127.61,1.3413]
[1725643647570,38.9359,127.68,127.61,1.3413]
[1725643647872,3.9193,127.65,127.61,1.3413]
[1725643648573,3.9193,127.65,127.61,5.2616]